bitfinex/quotes_SOLUSD_20240814
["timestamp","ask_amount","ask_price","bid_price","bid_amount"]
[1723638702084,45.59,148.5,148.33,45.59]
[1723638702280,45.59,148.54,148.36,45.59]
[1723638702994,20.0,148.53,148.36,45.59]
[1723638703194,20.0,148.61,148.44,0.12549]
[1723638703372,45.59,148.56,148.41,0.12549]
[1723638703576,45.59,148.49,148.32,2.70054353]
[1723638703775,45.59,148.52,148.36,45.59]
[1723638704086,45.59,148.49,148.33,45.59]
[1723638704302,6.7358,148.46,148.33,45.59]
[1723638704594,0.12549,148.45,148.32,2.70054353]
[1723638704797,0.37647,148.45,148.29,45.59]
[1723638704966,45.37647,148.45,148.29,45.59]
[1723638705371,45.59,148.52,148.35,45.59]
[1723638705788,45.59,148.52,148.36,0.12549]
[1723638706281,45.59,148.52,148.39,0.12549]
[1723638706477,45.59,148.52,148.39,65.37647]
[1723638706778,45.59,148.55,148.39,65.50196]
[1723638706979,65.59,148.55,148.39,65.0]
[1723638707165,45.59,148.52,148.39,20.0]
[1723638707372,6.7353,148.48,148.32,45.59]
[1723638707685,45.59,148.46,148.32,45.59]
[1723638707994,45.59,148.46,148.29,45.59]
[1723638708206,52.3276,148.43,148.29,45.59]
[1723638708494,45.59,148.4,148.26,45.59]
[1723638708707,20.0,148.39,148.26,45.59]
[1723638708890,45.0,148.39,148.26,45.59]
[1723638709097,45.59,148.4,148.26,45.59]
[1723638709593,45.37647,148.39,148.26,45.59]
[1723638709982,45.59,148.37,148.19,45.59]
[1723638710182,65.25098,148.36,148.19,45.59]
[1723638710383,45.59,148.34,148.19,45.59]
[1723638710698,45.59,148.37,148.19,2.76000291]
[1723638710888,45.59,148.37,148.2,45.59]
[1723638710889,45.37647,148.36,148.2,45.59]
[1723638711197,45.59,148.34,148.17,45.59]
[1723638711406,45.37647,148.33,148.17,45.59]
[1723638711979,45.59,148.4,148.23,45.59]
[1723638712195,51.99038,148.39,148.23,45.59]
[1723638712392,45.25098,148.39,148.23,45.59]
[1723638712804,6.7409,148.35,148.19,45.59]
[1723638712982,45.25098,148.34,148.19,45.59]
[1723638713385,0.25098,148.34,148.19,45.983552]
[1723638713810,0.12549,148.33,148.19,45.983552]
[1723638714198,0.12549,148.34,148.25,45.59]
[1723638714505,65.59,148.4,148.28,45.59]
[1723638714506,20.0,148.4,148.28,45.59]
[1723638714699,20.0,148.4,148.19,3.12312974]
[1723638715002,6.7396,148.38,148.24,0.12549]
[1723638715202,20.0,148.4,148.29,45.59]
[1723638715388,20.0,148.46,148.31,0.12549]
[1723638715594,20.0,148.4,148.19,3.12312974]
[1723638715811,20.0,148.42,148.27,45.59]
[1723638716115,20.0,148.43,148.28,20.0]
[1723638716281,26.7378,148.42,148.28,20.0]
[1723638716614,45.59,148.44,148.28,20.0]
[1723638716615,20.0,148.4,148.28,20.0]
[1723638716805,20.0,148.44,148.3,45.59]
[1723638716981,33.6621,148.54,148.3,45.59]
[1723638717188,6.7362,148.45,148.33,45.59]
[1723638717402,20.0,148.48,148.33,45.59]
[1723638717707,20.0,148.42,148.27,0.12549]
[1723638717882,20.0,148.4,148.26,48.24012115]
[1723638718084,20.0,148.38,148.26,2.65012115]
[1723638718301,20.0,148.35,148.19,45.983552]
[1723638718512,0.12549,148.32,148.19,45.983552]
[1723638718895,27.022167,148.38,148.19,45.983552]
[1723638719101,27.022167,148.38,148.28,45.59]
[1723638719410,45.12549,148.37,148.28,45.59]
[1723638719791,45.12549,148.37,148.29,20.0]
[1723638720007,45.59,148.44,148.29,20.0]
[1723638720211,20.0,148.43,148.3,0.12549]
[1723638720388,20.0,148.43,148.29,20.0]
[1723638720589,6.7377,148.42,148.29,20.0]
[1723638720820,20.0,148.43,148.29,0.12549]
[1723638721112,20.0,148.36,148.22,45.59]
[1723638721319,6.7418,148.33,148.19,45.983552]
[1723638721515,65.25098,148.32,148.19,45.983552]
[1723638721815,20.0,148.28,148.19,3.10676988]
[1723638722014,0.12549,148.23,148.19,3.10676988]
[1723638722221,45.37647,148.23,148.12,1.17416773]
[1723638722518,6.87029,148.27,148.15,45.59]
[1723638722719,0.12549,148.25,148.19,6.7477]
[1723638722907,0.12549,148.25,147.99,53.80806923]
[1723638722908,0.12549,148.23,147.97,26.738]
[1723638723112,45.50196,148.23,148.11,45.59]
[1723638723328,0.12549,148.21,148.08,45.59]
[1723638723617,0.37647,148.22,148.11,45.59]
[1723638723815,0.25098,148.21,147.99,20.0]
[1723638724015,0.12549,148.19,148.09,46.6615228]
[1723638724210,0.25098,148.19,148.09,1.0715228]
[1723638724415,0.25098,148.18,148.09,1.0715228]
[1723638724602,0.25098,148.18,148.13,45.59]
[1723638724803,45.0,148.23,148.09,1.0715228]
[1723638725012,0.12549,148.25,148.18,6.7482]
[1723638725224,0.12549,148.23,148.11,45.59]
[1723638725526,20.0,148.29,148.09,1.0715228]
[1723638725824,20.0,148.35,148.22,45.59]
[1723638726129,45.59,148.38,148.22,45.59]
[1723638726130,20.0,148.32,148.22,45.59]
[1723638726328,20.0,148.37,148.24,45.59]
[1723638726639,53.6853,148.44,148.19,45.59]
[1723638726640,20.0,148.41,148.27,45.59]
[1723638726810,20.0,148.41,148.33,6.7414]
[1723638727005,26.7392,148.39,148.27,45.59]
[1723638727313,45.59,148.41,148.27,45.59]
[1723638727507,20.0,148.38,148.27,45.59]
[1723638727904,20.0,148.38,148.24,45.59]
[1723638728101,20.0,148.35,148.24,45.59]
[1723638728405,6.7404,148.36,148.27,6.744]
[1723638728612,20.0,148.34,148.07,20.0]
[1723638728805,65.59,148.38,148.22,45.59]
[1723638729010,65.59,148.38,148.23,20.0]
[1723638729011,20.0,148.36,148.23,20.0]
[1723638729218,20.0,148.34,148.24,6.7456]
[1723638729430,20.0,148.33,148.2,20.0]
[1723638729609,26.7427,148.31,148.23,6.746]
[1723638729810,20.0,148.33,148.19,45.59]
[1723638730206,20.0,148.35,148.3,6.743]
[1723638730405,20.0,148.37,148.24,45.59]
[1723638730630,20.0,148.31,148.18,45.59]
[1723638730831,20.0,148.29,148.21,6.7469]
[1723638731036,26.7426,148.31,148.24,6.7457]
[1723638731331,26.7436,148.29,148.15,45.59]
[1723638731532,20.0,148.25,148.09,1.0715228]
[1723638731831,0.12549,148.2,148.15,6.7498]
[1723638732002,0.50196,148.2,148.13,6.7504]
[1723638732207,0.12549,148.19,148.1,45.59]
[1723638732432,0.25098,148.19,148.17,6.7489]
[1723638732636,0.25098,148.19,148.16,6.7494]
[1723638732836,0.25098,148.19,148.14,6.75]
[1723638733015,0.25098,148.19,148.1,45.59]
[1723638733408,20.25098,148.18,148.09,1.0715228]
[1723638733606,0.12549,148.16,148.11,6.7513]
[1723638733842,0.25098,148.16,148.09,1.0715228]
[1723638734044,0.12549,148.14,148.09,7.8240228]
[1723638734343,0.25098,148.14,148.09,1.0715228]
[1723638734512,0.12549,148.1,147.9,1.0715228]
[1723638734835,0.12549,148.05,147.92,45.59]
[1723638735048,0.12549,148.05,148.02,6.7555]
[1723638735349,0.12549,148.05,147.9,1.0715228]
[1723638735350,6.7557,148.03,147.9,1.0715228]
[1723638735635,45.71549,148.05,147.9,1.0715228]
[1723638735636,0.12549,147.99,147.9,1.0715228]
[1723638735841,0.12549,147.94,147.9,1.0715228]
[1723638736019,0.50196,147.94,147.91,6.7605]
[1723638736219,0.25098,147.94,147.92,6.7602]
[1723638736441,0.12549,147.91,147.9,1.0715228]
[1723638736632,20.0,147.86,147.75,45.59]
[1723638736833,0.25098,147.85,147.83,6.7643]
[1723638737033,0.12549,147.84,147.82,6.7648]
[1723638737212,20.0,147.82,147.71,1.0715228]
[1723638737560,0.37647,147.81,147.74,45.59]
[1723638737716,0.25098,147.84,147.74,45.59]
[1723638737917,0.25098,147.83,147.74,45.59]
[1723638738246,0.12549,147.81,147.71,1.0715228]
[1723638738423,0.12549,147.77,147.71,1.0715228]
[1723638738629,0.12549,147.71,147.69,4.4195]
[1723638738844,20.12549,147.7,147.69,4.4195]
[1723638739060,20.0,147.86,147.64,45.59]
[1723638739230,20.0,147.87,147.74,45.59]
[1723638739555,20.0,147.94,147.85,45.59]
[1723638739718,20.0,147.94,147.72,1.35234978]
[1723638739918,20.0,147.9,147.7,45.59]
[1723638740141,45.59,147.92,147.63,45.59]
[1723638740333,20.0,147.9,147.75,45.59]
[1723638740531,20.0,147.9,147.72,45.59]
[1723638740532,20.0,147.92,147.78,45.59]
[1723638741240,1.17602884,147.98,147.84,45.59]
[1723638741541,20.0,147.97,147.84,45.59]
[1723638741751,1.17457727,148.01,147.87,45.59]
[1723638742060,20.0,147.98,147.82,45.59]
[1723638742267,45.59,147.97,147.83,0.25098]
[1723638742455,1.17442672,148.0,147.85,45.59]
[1723638742636,20.0,148.05,147.89,0.12549]
[1723638742835,20.0,148.03,147.89,0.12549]
[1723638743045,65.59,148.03,147.85,0.12549]
[1723638743251,65.59,148.03,147.89,0.12549]
[1723638743452,65.59,148.03,147.88,45.59]
[1723638743453,20.0,148.01,147.88,45.59]
[1723638743632,1.17437592,148.06,147.84,45.59]
[1723638743633,20.0,147.97,147.84,45.59]
[1723638743834,45.59,147.97,147.81,45.59]
[1723638744173,45.59,147.97,147.73,1.35235024]
[1723638744345,45.59,148.0,147.86,45.59]
[1723638744538,47.084532,148.01,147.86,45.59]
[1723638744739,45.59,148.0,147.83,45.59]
[1723638744953,45.59,148.0,147.73,20.0]
[1723638744954,45.59,148.0,147.86,45.59]
[1723638745146,45.59,148.0,147.72,40.0]
[1723638745350,20.0,148.0,147.84,45.59]
[1723638745557,20.0,147.98,147.84,45.59]
[1723638745760,0.12549,147.97,147.84,45.59]
[1723638746064,20.0,148.0,147.87,45.59]
[1723638746276,20.0,147.98,147.84,45.59]
[1723638746443,20.0,148.0,147.84,45.59]
[1723638746648,92.673626,148.03,147.84,45.59]
[1723638746970,92.673626,148.03,147.88,45.59]
[1723638747338,92.673626,148.03,147.78,29.61812305]
[1723638747561,72.673626,148.03,147.88,45.59]
[1723638747751,27.083626,148.03,147.91,45.59]
[1723638747956,26.7545,148.05,147.92,20.0]
[1723638748177,26.7545,148.05,147.91,45.59]
[1723638748178,20.0,148.05,147.91,45.59]
[1723638748463,27.075462,148.06,147.95,0.12549]
[1723638748684,20.0,148.09,147.94,45.59]
[1723638748845,20.0,148.09,147.94,45.71549]
[1723638749181,20.0,148.09,147.91,45.59]
[1723638749182,26.7535,148.07,147.92,0.12549]
[1723638749475,47.065714,148.12,147.97,45.59]
[1723638749652,6.7512,148.12,147.98,20.0]
[1723638749968,20.0,148.08,147.91,45.59]
[1723638750267,21.17256,148.12,148.0,45.59]
[1723638750468,20.0,148.15,148.03,45.59]
[1723638750673,45.59,148.2,148.03,45.59]
[1723638750674,20.0,148.17,148.03,45.59]
[1723638751044,20.0,148.17,148.04,20.0]
[1723638751250,38.38357857,148.21,148.07,45.59]
[1723638751453,20.0,148.21,148.08,0.12549]
[1723638751753,20.0,148.2,148.08,20.0]
[1723638751946,20.0,148.17,148.02,45.59]
[1723638752144,65.59,148.12,147.95,45.59]
[1723638752345,65.59,148.12,147.84,65.59]
[1723638752346,20.0,148.1,147.84,65.59]
[1723638752567,45.59,148.09,147.93,45.59]
[1723638752758,20.0,148.11,147.93,45.59]
[1723638752951,26.752,148.11,147.93,45.59]
[1723638753153,45.59,148.12,147.91,45.59]
[1723638753154,0.12549,148.04,147.91,45.59]
[1723638753353,0.12549,148.08,147.91,45.59]
[1723638753558,20.37647,148.08,147.91,45.59]
[1723638753762,0.12549,148.03,147.88,45.59]
[1723638753956,0.25098,148.03,147.88,45.59]
[1723638754161,45.59,148.09,147.94,45.59]
[1723638754482,20.25098,148.08,147.94,45.59]
[1723638754655,0.25098,148.07,147.91,45.59]
[1723638754854,0.25098,148.07,147.77,20.0]
[1723638754855,20.12549,148.02,147.77,20.0]
[1723638755074,0.25098,148.01,147.86,45.59]
[1723638755273,0.25098,148.01,147.89,45.59]
[1723638755480,45.59,148.06,147.89,45.59]
[1723638755788,0.12549,148.02,147.89,45.59]
[1723638756080,0.12549,148.05,147.92,45.59]
[1723638756388,20.0,148.1,147.95,45.59]
[1723638756559,6.7526,148.09,147.95,45.59]
[1723638756760,65.59,148.12,147.95,45.59]
[1723638756965,6.7527,148.09,147.95,45.59]
[1723638757184,6.7527,148.09,147.86,45.59]
[1723638757185,20.0,148.06,147.92,45.59]
[1723638757386,20.0,148.04,147.89,45.59]
[1723638757684,0.25098,148.03,147.86,45.59]
[1723638757889,0.25098,148.03,147.84,45.59]
[1723638757890,0.12549,148.03,147.91,45.59]
[1723638758063,0.25098,148.03,147.91,45.59]
[1723638758262,20.0,148.11,147.94,45.59]
[1723638758462,20.0,148.09,147.94,45.59]
[1723638758683,65.59,148.09,147.94,45.59]
[1723638758880,45.59,148.09,147.94,45.59]
[1723638759069,45.59,148.09,147.95,0.12549]
[1723638759268,45.59,148.12,147.97,45.59]
[1723638759470,16.8756,148.15,147.98,0.12549]
[1723638759471,72.3399,148.15,147.98,0.12549]
[1723638759783,45.59,148.15,148.01,0.12549]
[1723638760090,45.59,148.15,147.98,65.37647]
[1723638760091,20.0,148.12,147.98,20.0]
[1723638760261,20.0,148.14,147.99,0.12549]
[1723638760462,20.0,148.18,148.0,45.59]
[1723638760666,26.7486,148.18,148.03,45.59]
[1723638760868,45.59,148.19,148.04,20.0]
[1723638761077,20.0,148.14,148.01,20.0]
[1723638761291,6.7513,148.12,147.98,0.12549]
[1723638761477,45.59,148.13,147.97,45.59]
[1723638761478,20.0,148.11,147.97,45.59]
[1723638761690,6.7531,148.08,147.94,45.59]
[1723638761997,65.59,148.13,147.87,20.0]
[1723638762285,0.12549,148.1,147.95,45.59]
[1723638762480,45.37647,148.1,147.95,45.59]
[1723638762684,0.12549,148.08,147.91,45.59]
[1723638762880,20.0,148.07,147.95,45.59]
[1723638763061,45.50196,148.06,147.91,45.59]
[1723638763262,72.25596,148.06,147.91,45.59]
[1723638763688,6.7546,148.05,147.91,45.59]
[1723638763902,45.37647,148.04,147.91,45.59]
[1723638764063,65.50196,148.06,147.91,45.59]
[1723638764270,0.12549,148.03,147.91,45.59]
[1723638764471,52.25736,148.03,147.91,45.59]
[1723638764785,45.50196,148.03,147.88,45.59]
[1723638765095,53.8857,148.22,147.84,45.59]
[1723638765388,65.59,148.09,147.94,45.59]
[1723638765595,6.754,148.07,147.94,45.59]
[1723638765794,26.7553,148.03,147.91,45.59]
[1723638766004,26.7545,148.05,147.89,15.335]
[1723638766170,6.755,148.04,147.9,20.0]
[1723638766697,45.25098,148.03,147.9,20.0]
[1723638766895,45.37647,148.03,147.9,20.0]
[1723638767202,45.59,147.99,147.89,15.335]
[1723638767395,45.37647,148.03,147.91,45.59]
[1723638767702,65.59,148.08,147.91,45.59]
[1723638767918,45.59,148.12,147.91,45.59]
[1723638767919,20.0,148.12,148.0,45.59]
[1723638768074,20.0,148.17,148.03,45.59]
[1723638768268,20.0,148.15,148.0,45.59]
[1723638768480,65.59,148.15,147.97,45.59]
[1723638768683,65.59,148.15,147.98,65.37647]
[1723638768871,65.59,148.15,147.99,0.12549]
[1723638769084,65.59,148.12,147.97,45.59]
[1723638769285,20.0,148.09,147.94,45.59]
[1723638769491,6.7531,148.08,147.91,45.59]
[1723638769671,45.59,148.09,147.91,45.59]
[1723638769879,20.0,148.05,147.85,16.998231]
[1723638770078,6.738,148.04,147.88,45.59]
[1723638770279,45.25098,148.03,147.88,45.59]
[1723638770503,45.12549,148.03,147.91,45.59]
[1723638770704,0.12549,148.02,147.9,6.4759]
[1723638770905,45.12549,148.02,147.9,6.4759]
[1723638771210,20.25098,148.01,147.9,6.4759]
[1723638771403,45.12549,148.0,147.9,6.4759]
[1723638771704,0.12549,148.0,147.9,6.4759]
[1723638772486,45.12549,148.0,147.9,6.4759]
[1723638772810,0.12549,148.01,147.9,6.4759]
[1723638772984,20.0,148.06,147.91,45.59]
[1723638773181,45.59,148.07,147.91,45.59]
[1723638773410,59.0816,148.07,147.91,45.59]
[1723638773592,20.0,148.06,147.91,45.59]
[1723638773806,20.0,148.06,147.92,0.12549]
[1723638774021,20.0,148.06,147.91,45.59]
[1723638774223,20.0,148.04,147.91,45.59]
[1723638774590,45.25098,148.03,147.91,45.59]
[1723638775086,6.7563,148.01,147.9,6.4759]
[1723638775290,45.37647,148.0,147.9,6.4759]
[1723638776199,26.7554,148.03,147.9,6.4759]
[1723638776504,52.3449,148.05,147.9,52.0659]
[1723638776710,6.7564,148.01,147.9,52.0659]
[1723638777094,20.0,148.02,147.9,6.4759]
[1723638777282,6.7571,148.0,147.9,6.4759]
[1723638777488,65.59,148.02,147.9,6.4759]
[1723638777691,6.7576,147.99,147.9,6.4759]
[1723638777912,45.37647,147.98,147.9,6.4759]
[1723638778084,65.27549,147.98,147.9,6.4759]
[1723638778279,0.12549,147.98,147.9,6.4759]
[1723638778518,65.59,148.02,147.9,6.4759]
[1723638778519,6.7558,148.02,147.9,6.4759]
[1723638778693,45.59,148.05,147.9,6.4759]
[1723638779008,66.76315381,148.08,147.93,0.12549]
[1723638779210,6.754,148.06,147.93,0.12549]
[1723638779513,6.738,148.07,147.93,0.12549]
[1723638779697,26.738,148.07,147.92,45.59]
[1723638780007,6.7554,148.03,147.92,45.59]
[1723638780217,6.738,148.07,147.92,45.59]
[1723638780395,1.17315381,148.08,147.95,45.59]
[1723638780716,6.7523,148.1,147.99,0.12549]
[1723638781010,65.59,148.14,147.99,0.12549]
[1723638781210,65.59,148.14,147.98,45.59]
[1723638781211,20.0,148.11,147.98,45.59]
[1723638781416,6.7512,148.13,147.99,0.12549]
[1723638781583,52.328,148.14,147.99,20.12549]
[1723638781783,65.59,148.14,147.99,20.12549]
[1723638782011,6.7521,148.11,147.99,20.12549]
[1723638782183,45.59,148.11,147.97,0.12549]
[1723638782389,52.328,148.11,147.97,0.12549]
[1723638782590,59.0798,148.11,147.97,0.12549]
[1723638782897,20.0,148.14,147.97,0.12549]
[1723638782898,45.59,148.14,147.99,0.12549]
[1723638783089,45.59,148.14,147.99,65.37647]
[1723638783287,52.3404,148.14,148.0,0.12549]
[1723638783511,65.59,148.14,147.99,20.12549]
[1723638783717,6.7539,148.07,147.96,15.9046]
[1723638783894,65.59,148.08,147.96,15.9046]
[1723638784091,6.7546,148.05,147.96,15.9046]
[1723638784295,6.754,148.07,147.96,15.9046]
[1723638784499,52.3432,148.08,147.96,15.9046]
[1723638784811,6.7541,148.06,147.96,15.9046]
[1723638785017,45.59,148.06,147.96,15.9046]
[1723638785193,0.25098,148.05,147.96,15.9046]
[1723638785393,381.7,148.1,147.96,15.9046]
[1723638785595,0.12549,148.09,147.96,15.9046]
[1723638786392,6.7532,148.08,147.96,15.9046]
[1723638786585,6.7527,148.09,147.96,15.9046]
[1723638786790,6.7527,148.09,147.97,0.12549]
[1723638787418,45.59,148.12,147.97,111.09196]
[1723638787714,258.9,148.13,148.03,0.12549]
[1723638788284,258.9,148.13,148.03,65.84098]
[1723638788489,381.7,148.15,148.03,65.84098]
[1723638788690,381.7,148.15,148.03,0.12549]
[1723638788916,381.7,148.15,148.02,6.5054]
[1723638788917,45.59,148.13,148.02,6.5054]
[1723638789123,45.59,148.1,148.02,6.5054]
[1723638789287,381.7,148.14,148.02,6.5054]
[1723638789803,52.3381,148.19,148.04,45.59]
[1723638790015,45.59,148.19,148.04,45.59]
[1723638790217,27.052441,148.21,148.07,45.59]
[1723638790423,27.052441,148.21,148.09,0.12549]
[1723638790595,1.1434385,148.24,148.11,0.12549]
[1723638790799,1.1434385,148.24,148.13,45.71549]
[1723638791000,1.1434385,148.24,148.15,0.12549]
[1723638791409,1.1434385,148.24,148.17,0.12549]
[1723638791719,79.46817014,148.32,148.2,0.12549]
[1723638791917,79.46817014,148.32,148.2,0.25098]
[1723638792215,79.46817014,148.32,148.24,6.6488]
[1723638792403,39.46837014,148.32,148.25,45.96647]
[1723638792601,32.80177014,148.32,148.31,45.59]
[1723638792811,6.7365,148.45,148.29,0.12549]
[1723638792997,45.59,148.47,148.32,0.12549]
[1723638793196,1.3652341,148.49,148.42,45.59]
[1723638793395,1.3652341,148.49,148.4,0.12549]
[1723638793396,1.3652341,148.49,148.41,45.59]
[1723638793802,1.3652341,148.49,148.39,6.1315]
[1723638794008,45.59,148.47,148.33,0.12549]
[1723638794216,1.3652341,148.49,148.33,0.12549]
[1723638794437,20.0,148.48,148.35,0.12549]
[1723638794598,6.737,148.44,148.33,0.12549]
[1723638794794,45.59,148.43,148.22,6.3775]
[1723638795027,15.4876,148.44,148.31,45.59]
[1723638795198,6.738,148.42,148.28,45.59]
[1723638795518,6.7372,148.43,148.31,45.59]
[1723638795722,6.7395,148.38,148.28,45.59]
[1723638796020,0.12549,148.46,148.31,45.59]
[1723638796229,6.7354,148.47,148.34,45.59]
[1723638796612,6.7354,148.47,148.31,45.59]
[1723638796613,6.7376,148.42,148.31,45.59]
[1723638796819,6.7367,148.45,148.31,45.59]
[1723638797026,2.53977435,148.49,148.37,45.59]
[1723638797200,8.0996341,148.49,148.38,0.12549]
[1723638797401,1.3652341,148.49,148.4,45.59]
[1723638797727,1.3652341,148.49,148.37,6.261]
[1723638797921,1.3652341,148.49,148.38,0.12549]
[1723638798222,1.3652341,148.49,148.41,0.12549]
[1723638798429,1.3652341,148.49,148.43,45.59]
[1723638798642,1.3652341,148.49,148.44,0.12549]
[1723638798927,1.3652341,148.49,148.41,0.12549]
[1723638799106,6.7349,148.48,148.38,0.25098]
[1723638799312,1.3652341,148.49,148.37,6.261]
[1723638799701,1.3652341,148.49,148.4,45.59]
[1723638800027,20.0,148.57,148.45,6.7362]
[1723638800028,66.4913397,148.57,148.45,6.7362]
[1723638800323,0.9013397,148.57,148.46,45.59]
[1723638800527,0.9013397,148.57,148.49,6.7343]
[1723638800741,0.9013397,148.57,148.48,6.7348]
[1723638800901,0.9013397,148.57,148.52,6.733]
[1723638801103,0.9013397,148.57,148.49,45.59]
[1723638801304,0.9013397,148.57,148.5,0.12549]
[1723638801528,0.9013397,148.57,148.52,45.59]
[1723638801824,0.9013397,148.57,148.54,6.7317]
[1723638802036,0.9013397,148.57,148.56,6.7312]
[1723638802234,21.173363,148.69,148.64,6.7276]
[1723638802530,15.3463,148.8,148.64,45.59]
[1723638802531,1.17260382,148.74,148.64,45.59]
[1723638802699,15.3463,148.8,148.67,45.59]
[1723638802909,15.3463,148.8,148.7,6.7245]
[1723638803100,6.7212,148.79,148.67,45.59]
[1723638803412,15.3463,148.8,148.67,45.59]
[1723638803710,6.7213,148.78,148.67,45.59]
[1723638803901,6.7207,148.8,148.72,6.724]
[1723638804109,20.0,148.84,148.72,6.724]
[1723638804322,6.7208,148.8,148.68,0.12549]
[1723638804500,16.7969,148.84,148.72,6.724]
[1723638804706,6.7199,148.82,148.72,6.724]
[1723638804901,45.59,148.85,148.72,6.84949]
[1723638805135,1.17179608,148.86,148.73,0.12549]
[1723638805307,0.9017299,148.88,148.77,0.12549]
[1723638805507,0.9017299,148.88,148.82,45.59]
[1723638805909,0.9017299,148.88,148.83,0.12549]
[1723638806112,17.41882979,148.96,148.87,0.12549]
[1723638806418,16.24803,148.96,148.88,0.12549]
[1723638806606,16.24803,148.96,148.91,0.12549]
[1723638806806,20.0,149.14,148.91,0.12549]
[1723638806807,36.4397,149.15,148.96,0.12549]
[1723638807036,65.59,149.11,148.92,0.12549]
[1723638807216,6.7101,149.03,148.92,45.84098]
[1723638807418,6.7095,149.05,148.93,0.12549]
[1723638807603,20.0,149.07,148.92,45.71549]
[1723638807810,6.7114,149.0,148.9,0.12549]
[1723638808120,6.7096,149.04,148.92,45.59]
[1723638808317,6.7132,148.96,148.85,0.12549]
[1723638808630,15.8388,148.99,148.83,45.59]
[1723638809134,45.59,149.08,148.92,45.59]
[1723638809312,6.708,149.08,148.95,45.59]
[1723638809507,17.0322979,149.09,148.98,45.59]
[1723638809929,17.0322979,149.09,148.89,9.78383525]
[1723638810108,17.0322979,149.09,148.98,0.12549]
[1723638810320,17.0322979,149.09,148.98,0.50196]
[1723638810517,17.0322979,149.09,149.0,45.59]
[1723638810721,17.0322979,149.09,149.01,0.12549]
[1723638810917,0.6590979,149.09,149.03,45.59]
[1723638811118,0.6590979,149.09,149.06,45.59]
[1723638811321,0.6590979,149.09,149.08,0.12549]
[1723638811526,16.2712,149.19,149.08,1.46617869]
[1723638811727,16.2712,149.19,149.12,0.12549]
[1723638811923,16.2712,149.19,149.12,0.50196]
[1723638812110,1.16848711,149.28,149.14,0.12549]
[1723638812314,45.59,149.31,149.15,45.59]
[1723638812542,1.16803721,149.3,149.16,65.50196]
[1723638812844,1.443981,149.35,149.21,45.59]
[1723638813015,1.443981,149.35,149.22,0.50196]
[1723638813218,6.6997,149.26,149.17,45.59]
[1723638813543,1.443981,149.35,149.1,45.59]
[1723638813544,45.59,149.29,149.1,45.59]
[1723638813733,62.3364,149.29,149.11,20.37647]
[1723638813912,45.59,149.32,149.16,45.59]
[1723638814113,45.59,149.32,149.17,20.37647]
[1723638814343,45.59,149.29,149.13,45.59]